Workbook

Sheet P&L
A1: AGILENT TECHNOLOGIES, INC.
A2: CONDENSED CONSOLIDATED STATEMENT OF OPERATIONS
A3: (In millions, except per share amounts)
A4: (Unaudited)
A5: PRELIMINARY
B8: Three Months Ended | F8: Nine Months Ended
B9: July 31, | F9: July 31,
B10: 2022 | D10: 2021 | F10: 2022 | H10: 2021
A12: Net revenue | B12: $1,718 | D12: $1,586 | F12: $4,999 | H12: $4,659
A14: Costs and expenses:
A15: Cost of products and services | B15: 779 | D15: 734 | F15: 2,289 | H15: 2,152
A16: Research and development | B16: 116 | D16: 113 | F16: 348 | H16: 325
A17: Selling, general and administrative | B17: 412 | D17: 403 | F17: 1,215 | H17: 1,230
A18: Total costs and expenses | B18: =SUM(B15:B17) -> 1,307 | D18: =SUM(D15:D17) -> 1,250 | F18: =SUM(F15:F17) -> 3,852 | H18: =SUM(H15:H17) -> 3,707
A20: Income from operations | B20: =B12-B18 -> 411 | D20: =D12-D18 -> 336 | F20: =F12-F18 -> 1,147 | H20: =H12-H18 -> 952
A22: Interest income | B22: 2 | D22: — | F22: 4 | H22: 1
A23: Interest expense | B23: (19) | D23: (21) | F23: (61) | H23: (60)
A24: Other income (expense), net | B24: 3 | D24: 12 | F24: (41) | H24: 19
A26: Income before taxes | B26: =SUM(B20:B24) -> 397 | D26: =SUM(D20:D24) -> 327 | F26: =SUM(F20:F24) -> 1,049 | H26: =SUM(H20:H24) -> 912
A28: Provision for income taxes | B28: 68 | D28: 63 | F28: 163 | H28: 144
A30: Net income | B30: =B26-B28 -> $329 | D30: =D26-D28 -> $264 | F30: =F26-F28 -> $886 | H30: =H26-H28 -> $768
A34: Net income per share:
A35: Basic | B35: =B30/B39 -> $1.10 | D35: =D30/D39 -> $0.87 | F35: =F30/F39 -> $2.95 | H35: =H30/H39 -> $2.52
A36: Diluted | B36: =B30/B40 -> $1.10 | D36: =D30/D40 -> $0.86 | F36: =F30/F40 -> $2.94 | H36: =H30/H40 -> $2.50
A38: Weighted average shares used in computing net income per share:
A39: Basic | B39: 298 | D39: 303 | F39: 300 | H39: 305
A40: Diluted | B40: 299 | D40: 306 | F40: 301 | H40: 307
A48: The preliminary income statement is estimated based on our current information.
A51: Page 1

Sheet Balance Sheet
A1: AGILENT TECHNOLOGIES, INC.
A2: CONDENSED CONSOLIDATED BALANCE SHEET
A3: (In millions, except par value and share amounts)
A4: (Unaudited)
A5: PRELIMINARY
E8: July 31, | G8: October 31,
E9: 2022 | G9: 2021
A10: ASSETS
A12: Current assets:
B13: Cash and cash equivalents | E13: $1,071 | G13: $1,484
B14: Short-term investments | E14: 6 | G14: 91
B15: Accounts receivable, net | E15: 1,345 | G15: 1,172
B16: Inventory | E16: 1,010 | G16: 830
B17: Other current assets | E17: 258 | G17: 222
C18: Total current assets | E18: =SUM(E13:E17) -> 3,690 | G18: =SUM(G13:G17) -> 3,799
A20: Property, plant and equipment, net | E20: 1,054 | G20: 945
A21: Goodwill and other intangible assets, net | E21: =3948+849 -> 4,797 | G21: =3975+981 -> 4,956
A22: Long-term investments | E22: 194 | G22: 185
A23: Other assets | E23: 749 | G23: 820
C24: Total assets | E24: =SUM(E18:E23) -> $10,484 | G24: =SUM(G18:G23) -> $10,705
A26: LIABILITIES AND EQUITY
A28: Current liabilities:
B29: Accounts payable | E29: $558 | G29: $446
B30: Employee compensation and benefits | E30: 389 | G30: 493
B31: Deferred revenue | E31: 498 | G31: 441
B32: Short-term debt | E32: 180 | G32: —
B33: Other accrued liabilities | E33: 277 | G33: 328
C34: Total current liabilities | E34: =SUM(E29:E33) -> 1,902 | G34: =SUM(G29:G33) -> 1,708
A36: Long-term debt | E36: 2,732 | G36: 2,729
A37: Retirement and post-retirement benefits | E37: 176 | G37: 220
A38: Other long-term liabilities | E38: 583 | G38: 659
C39: Total liabilities | E39: =SUM(E34:E38) -> 5,393 | G39: =SUM(G34:G38) -> 5,316
A41: Total Equity:
B42: Stockholders' equity:
B43: Preferred stock; $0.01 par value; 125 million
C44: shares authorized; none issued and outstanding | E44: — | G44: —
B45: Common stock; $0.01 par value, 2 billion
C46: shares authorized; 296 million shares at July 31, 2022
C47: and 302 million shares at October 31, 2021, issued and outstanding | E47: 3 | G47: 3
B48: Additional paid-in-capital | E48: 5,311 | G48: 5,320
B49: Retained earnings | E49: 139 | G49: 348
B50: Accumulated other comprehensive loss | E50: (362) | G50: (282)
C51: Total stockholders' equity | E51: =SUM(E44:E50) -> 5,091 | G51: =SUM(G44:G50) -> 5,389
D52: Total liabilities and stockholders' equity | E52: =E39+E51 -> $10,484 | G52: =G39+G51 -> $10,705
A55: The preliminary balance sheet is estimated based on our current information.
A59: Page 2

Sheet Cash Flow
A1: AGILENT TECHNOLOGIES, INC.
A2: CONDENSED CONSOLIDATED STATEMENT OF CASH FLOWS
A3: (In millions)
A4: (Unaudited)
A5: PRELIMINARY
F8: Nine Months Ended
F9: July 31, | H9: July 31,
F10: 2022 | H10: 2021
A11: Cash flows from operating activities:
B12: Net income | F12: $886 | H12: $768
A14: Adjustments to reconcile net income to net cash provided by operating activities:
B15: Depreciation and amortization | F15: 244 | H15: 237
B16: Share-based compensation | F16: 99 | H16: 88
B17: Excess and obsolete inventory related charges | F17: 16 | H17: 21
B18: Loss on extinguishment of debt | F18: 9 | H18: 17
B19: Asset impairment charges | F19: — | H19: 2
B20: Net loss (gain) on equity securities | F20: 60 | H20: (24)
B21: Change in fair value of contingent consideration | F21: (25) | H21: —
B22: Other non-cash expenses, net | F22: 10 | H22: 1
B23: Changes in assets and liabilities:
C24: Accounts receivable, net | F24: (233) | H24: (69)
C25: Inventory | F25: (206) | H25: (115)
C26: Accounts payable | F26: 110 | H26: 46
C27: Employee compensation and benefits | F27: (98) | H27: 38
C28: Other assets and liabilities | F28: (8) | H28: 34
A29: Net cash provided by operating activities (a) | F29: =SUM(F12:F28) -> 864 | H29: =SUM(H12:H28) -> 1,044
A31: Cash flows from investing activities:
B32: Investments in property, plant and equipment | F32: (221) | H32: (126)
B33: Proceeds from sale of property, plant and equipment | H33: —
B34: Payment to acquire equity securities | F34: (10) | H34: (15)
B35: Proceeds from sale of equity securities | F35: 22 | H35: —
B36: Payment in exchange for convertible note | F36: (1) | H36: (2)
B37: Acquisition of businesses and intangible assets, net of cash acquired | F37: (18) | H37: =-546-1 -> (547)
A38: Net cash used in investing activities | F38: =SUM(F32:F37) -> (228) | H38: =SUM(H32:H37) -> (690)
A40: Cash flows from financing activities:
B41: Issuance of common stock under employee stock plans | F41: 55 | H41: 52
B42: Payment of taxes related to net share settlement of equity awards | F42: (65) | H42: (74)
B43: Issuance of senior notes and long-term loan | F43: 600 | H43: 848
B44: Debt issuance costs | F44: — | H44: (7)
B45: Payment of dividends | F45: (188) | H45: (177)
B46: Repayment of senior notes | F46: (609) | H46: (417)
B47: Proceeds from commercial paper | F47: 940 | H47: 1,492
B48: Repayment of commercial paper | F48: (760) | H48: (1,437)
B49: Proceeds from revolving credit facility
B50: Repayment of revolving credit facility
B51: Repayment of finance lease
B52: Treasury stock repurchases | F52: (1,004) | H52: (652)
A53: Net cash used in financing activities | F53: =SUM(F39:F52) -> (1,031) | H53: =SUM(H41:H52) -> (372)
A55: Effect of exchange rate movements | F55: (22) | H55: 6
A57: Net decrease in cash, cash equivalents and restricted cash | F57: =F29+F38+F53+F55 -> (417) | H57: =H29+H38+H53+H55 -> (12)
A59: Cash, cash equivalents and restricted cash at beginning of period | F59: 1,490 | H59: 1,447
A61: Cash, cash equivalents and restricted cash at end of period | F61: =SUM(F57:F59) -> $1,073 | H61: =SUM(H57:H59) -> $1,435
A64: Reconciliation of cash, cash equivalents and restricted cash to the condensed consolidated balance sheet:
B66: Cash and cash equivalents | F66: $1,071 | H66: $1,428
B67: Restricted cash, included in other assets | F67: 2 | H67: 7
B68: Total cash, cash equivalents and restricted cash | F68: =SUM(F66:F67) -> $1,073 | H68: =SUM(H66:H67) -> $1,435
A71: (a) Cash payments included in operating activities:
B73: Income tax payments, net | F73: $217 | H73: $164
B74: Interest payments | F74: $56 | H74: $53
A77: The preliminary cash flow is estimated based on our current information.
A80: Page 3

Sheet Net Income & EPS Non-GAAP
A1: AGILENT TECHNOLOGIES, INC.
A2: NON-GAAP NET INCOME AND DILUTED EPS RECONCILIATIONS
A3: (In millions, except per share amounts)
A4: (Unaudited)
A5: PRELIMINARY
E7: Three Months Ended | K7: Nine Months Ended
E8: July 31, | K8: July 31,
E9: 2022 | F9: Diluted EPS | H9: 2021 | I9: Diluted EPS | K9: 2022 | L9: Diluted EPS | N9: 2021 | O9: Diluted EPS
A11: GAAP net income | E11: $329 | F11: $1.10 | H11: $264 | I11: $0.86 | K11: $886 | L11: $2.94 | N11: $768 | O11: $2.50
B12: Non-GAAP adjustments:
C13: Asset impairments | E13: — | F13: — | H13: — | I13: — | K13: — | L13: — | N13: 2 | O13: 0.01
C14: Intangible amortization | E14: 48 | F14: 0.16 | H14: 53 | I14: 0.17 | K14: 149 | L14: 0.50 | N14: 143 | O14: 0.47
C15: Transformational initiatives | E15: 8 | F15: 0.03 | H15: 12 | I15: 0.04 | K15: 21 | L15: 0.07 | N15: 32 | O15: 0.10
C16: Acquisition and integration costs | E16: 4 | F16: 0.01 | H16: 10 | I16: 0.03 | K16: 19 | L16: 0.06 | N16: 32 | O16: 0.10
C17: Change in fair value of contingent consideration | E17: — | F17: — | H17: — | I17: — | K17: (25) | L17: (0.08) | N17: — | O17: —
C18: Loss on extinguishment of debt | E18: 9 | F18: 0.03 | H18: — | I18: — | K18: 9 | L18: 0.03 | N18: 17 | O18: 0.06
C19: Business exit and divestiture costs | E19: — | F19: — | H19: — | I19: — | K19: 7 | L19: 0.02 | N19: 4 | O19: 0.01
C20: Net loss (gain) on equity securities | E20: (3) | F20: (0.01) | H20: (8) | I20: (0.03) | K20: 58 | L20: 0.19 | N20: (19) | O20: (0.07)
C21: Other | E21: 2 | F21: 0.01 | H21: 1 | I21: — | K21: 2 | L21: 0.01 | N21: 7 | O21: 0.02
C22: Adjustment for taxes (a) | E22: 4 | F22: 0.01 | H22: 5 | I22: 0.03 | K22: (17) | L22: (0.06) | N22: (22) | O22: (0.06)
A23: Non-GAAP net income | E23: =SUM(E11:E22) -> $401 | F23: =SUM(F11:F22) -> $1.34 | H23: =SUM(H11:H22) -> $337 | I23: =SUM(I11:I22) -> $1.10 | K23: =SUM(K11:K22) -> $1,109 | L23: =SUM(L11:L22) -> $3.68 | N23: =SUM(N11:N22) -> $964 | O23: =SUM(O11:O22) -> $3.14
A26: (a) The adjustment for taxes excludes tax expense (benefits) that management believes are not directly related to on-going operations and which are either isolated or cannot be expected to occur again with any regularity or predictability. For the three months ended July 31, 2022, management used a non-GAAP effective tax rate of 13.76%. For the nine months ended July 31, 2022, management used a non-GAAP effective tax rate of 14.00%. For the three and nine months ended July 31, 2021, management used a non-GAAP effective tax rate of 14.75%.
A28: We provide non-GAAP net income and non-GAAP net income per share amounts in order to provide meaningful supplemental information regarding our operational performance and our prospects for the future. These supplemental measures exclude, among other things, charges related to asset impairments, amortization of intangibles, transformational initiatives, acquisition and integration costs, change in fair value of contingent consideration, loss on extinguishment of debt, business exit and divestiture costs and net loss (gain) on equity securities.
B29: Asset impairments include assets that have been written down to their fair value.
B30: Transformational initiatives include expenses associated with targeted cost reduction activities such as manufacturing transfers including costs to move manufacturing, small site consolidations, legal entity and other business reorganizations, insourcing or outsourcing of activities. Such costs may include move and relocation costs, one-time termination benefits and other one-time reorganization costs. Included in this category are also expenses associated with company programs to transform our product lifecycle management (PLM) system, human resources and financial systems.
B31: Acquisition and integration costs include all incremental expenses incurred to effect a business combination. Such acquisition costs may include advisory, legal, accounting, valuation, and other professional or consulting fees. Such integration costs may include expenses directly related to integration of business and facility operations, the transfer of assets and intellectual property, information technology systems and infrastructure and other employee-related costs.
B32: Pension settlement loss relates to the relief of the US Retirement Plan pension obligation due to increased lump sum payouts over a specified accounting threshold.
B33: Change in fair value of contingent consideration represents changes in the fair value estimate of acquisition-related contingent consideration.
B34: Loss on extinguishment of debt for the three and nine months ended July 31, 2022 relates to the net loss recorded on the redemption of the $600 million outstanding 3.875% 2023 senior notes due on July 15, 2023, called on April 4, 2022 and settled on May 4, 2022. For the nine months ended July 31, 2021, it relates to the net loss recorded on the redemption of the $100 million of the $400 million outstanding 3.2% 2022 senior notes due on October 1, 2022, called on December 22, 2020 and settled on January 21, 2021 and the net loss recorded on the redemption of the remaining $300 million called on March 5, 2021 and settled on April 5, 2021.
B35: Business exit and divestiture costs include costs associated with business divestitures.
B36: Pension settlement loss relates to the relief of the US Retirement Plan pension obligation due to increased lump sum payouts over a specified accounting threshold.
B37: NASD site costs include all the costs related to the expansion of our manufacturing of nucleic acid active pharmaceutical ingredients incurred prior to the commencement of commercial manufacturing.
B38: Special compliance costs include costs associated with transforming our processes to implement new regulations such as data privacy regulations, revenue recognition, lease accounting and certain tax reporting requirements.
B39: Acceleration of share-based compensation expense represents stock-based compensation expense that was accelerated upon employees’ involuntary termination from the company.
B40: Net loss (gain) on equity securities relates to the realized and unrealized mark-to-market adjustments for our marketable and non-marketable equity securities.
B41: Other includes certain legal costs and settlements, special compliance costs and acceleration of share-based compensation expense in addition to other miscellaneous adjustments.
B42: Tax benefit on intra-entity asset transfer relates to our operations in Singapore along with our application of the new accounting rules for income tax consequences of intra-entity transfer of assets as adopted on November 1, 2018.
A44: Our management uses non-GAAP measures to evaluate the performance of our core businesses, to estimate future core performance and to compensate employees. Since management finds this measure to be useful, we believe that our investors benefit from seeing our results “through the eyes” of management in addition to seeing our GAAP results. This information facilitates our management’s internal comparisons to our historical operating results as well as to the operating results of our competitors.
A46: Our management recognizes that items such as amortization of intangibles can have a material impact on our cash flows and/or our net income. Our GAAP financial statements including our statement of cash flows portray those effects. Although we believe it is useful for investors to see core performance free of special items, investors should understand that the excluded items are actual expenses that may impact the cash available to us for other uses. To gain a complete picture of all effects on the company’s profit and loss from any and all events, management does (and investors should) rely upon the GAAP income statement. The non-GAAP numbers focus instead upon the core business of the company, which is only a subset, albeit a critical one, of the company’s performance.
A48: Readers are reminded that non-GAAP numbers are merely a supplement to, and not a replacement for, GAAP financial measures. They should be read in conjunction with the GAAP financial measures. It should be noted as well that our non-GAAP information may be different from the non-GAAP information provided by other companies.
A50: The preliminary non-GAAP net income and diluted EPS reconciliation is estimated based on our current information.
A53: Page 4

Sheet Segment Results
A1: AGILENT TECHNOLOGIES, INC.
A2: SEGMENT INFORMATION
A3: (In millions, except where noted)
A4: (Unaudited)
A5: PRELIMINARY
A8: Quarter-over-Quarter
A10: Life Sciences and Applied Markets Group
C11: Q3'22 | E11: Q3'21
A12: Revenue | C12: $1,019 | E12: $897
A13: Gross Margin, % | C13: 60.5% | E13: 60.4%
A14: Income from Operations | C14: $311 | E14: $250
A15: Operating margin, % | C15: 30.5% | E15: 27.9%
A18: Diagnostics and Genomics Group
C19: =C11 -> Q3'22 | E19: =E11 -> Q3'21
A20: Revenue | C20: $340 | E20: $346
A21: Gross Margin, % | C21: 54.0% | E21: 53.5%
A22: Income from Operations | C22: $73 | E22: $78
A23: Operating margin, % | C23: 21.5% | E23: 22.6%
A26: Agilent CrossLab Group
C27: =C11 -> Q3'22 | E27: =E11 -> Q3'21
A28: Revenue | C28: $359 | E28: $343
A29: Gross Margin, % | C29: 47.0% | E29: 46.6%
A30: Income from Operations | C30: $88 | E30: $84
A31: Operating margin, % | C31: 24.6% | E31: 24.4%
A34: Year-over-Year
A36: Life Sciences and Applied Markets Group
C37: FY21 | E37: FY20
A38: Revenue | C38: $2,823 | E38: $2,392
A39: Gross Margin, % | C39: 59.8% | E39: 59.2%
A40: Income from Operations | C40: $722 | E40: $548
A41: Operating margin, % | C41: 25.6% | E41: 22.9%
A44: Diagnostics and Genomics Group
C45: =C37 -> FY21 | E45: =E37 -> FY20
A46: Revenue | C46: $1,296 | E46: $1,047
A47: Gross Margin, % | C47: 52.8% | E47: 51.9%
A48: Income from Operations | C48: $273 | E48: $192
A49: Operating margin, % | C49: 21.0% | E49: 18.3%
A52: Agilent CrossLab Group
C53: =C37 -> FY21 | E53: =E37 -> FY20
A54: Revenue | C54: $2,200 | E54: $1,900
A55: Gross Margin, % | C55: 52.3% | E55: 52.2%
A56: Income from Operations | C56: $618 | E56: $516
A57: Operating margin, % | C57: 28.1% | E57: 27.2%
A61: Income from operations reflect the results of our reportable segments under Agilent's management reporting system which are not necessarily in conformity with GAAP financial measures. Income from operations of our reporting segments exclude, among other things, charges related to amortization of intangibles, transformational initiatives and acquisition and integration costs.
A63: Readers are reminded that non-GAAP numbers are merely a supplement to, and not a replacement for, GAAP financial measures. They should be read in conjunction with the GAAP financial measures. It should be noted as well that our non-GAAP information may be different from the non-GAAP information provided by other companies.
A65: The preliminary segment information is estimated based on our current information.
A68: Page 5

Sheet Core Revenue by Segment (QTD)
A1: AGILENT TECHNOLOGIES, INC.
A2: RECONCILIATIONS OF REVENUE BY SEGMENT
A3: EXCLUDING ACQUISITIONS, DIVESTITURES AND THE IMPACT OF CURRENCY ADJUSTMENTS (CORE)
A4: (in millions)
A5: (Unaudited)
A6: PRELIMINARY
B8: Year-over-Year
B10: GAAP
D11: Year-over-Year
A12: GAAP Revenue by Segment | B12: Q3'22 | C12: Q3'21 | D12: % Change
A14: Life Sciences and Applied Markets Group | B14: $1,019 | C14: $897 | D14: 14%
A15: Diagnostics and Genomics Group | B15: 340 | C15: 346 | D15: (2%)
A16: Agilent CrossLab Group | B16: 359 | C16: 343 | D16: 5%
A17: Agilent | B17: =SUM(B14:B16) -> $1,718 | C17: =SUM(C14:C16) -> $1,586 | D17: 8%
B22: Non-GAAP (excluding Acquisitions & Divestitures) | F22: Year-over-Year at Constant Currency (a)
D23: Year-over-Year | F23: Year-over-Year | G23: Percentage Point Impact from Currency | I23: Current Quarter Currency Impact (b)
A24: Non GAAP Revenue by Segment | B24: =B12 -> Q3'22 | C24: =C12 -> Q3'21 | D24: % Change | F24: % Change
A26: Life Sciences and Applied Markets Group | B26: $1,019 | C26: $897 | D26: 14% | F26: 18% | G26: -4 ppts | I26: $(43)
A27: Diagnostics and Genomics Group | B27: 340 | C27: 346 | D27: (2%) | F27: 3% | G27: -5 ppts | I27: (14)
A28: Agilent CrossLab Group | B28: 359 | C28: 343 | D28: 5% | F28: 10% | G28: -5 ppts | I28: (19)
A29: Agilent (Core) | B29: =SUM(B26:B28) -> $1,718 | C29: =SUM(C26:C28) -> $1,586 | D29: 8% | F29: 13% | G29: -5 ppts | I29: =SUM(I26:I28) -> $(76)
A33: We compare the year-over-year change in revenue excluding the effect of recent acquisitions and divestitures and foreign currency rate fluctuations to assess the performance of our underlying business.
A35: (a) The constant currency year-over-year growth percentage is calculated by recalculating all periods in the comparison period at the foreign currency exchange rates used for accounting during the last month of the current quarter and then using those revised values to calculate the year-over-year percentage change.
A37: (b) The dollar impact from the current quarter currency impact is equal to the total year-over-year dollar change less the constant currency year-over-year change.
A39: The preliminary reconciliation of GAAP revenue adjusted for recent acquisitions and divestitures and impact of currency is estimated based on our current information.
A45: Page 6
